bitfinex/quotes_BTCUSD_20240823
["timestamp","ask_amount","ask_price","bid_price","bid_amount"]
[1724441554485,0.09368735,63730.0,63725.0,0.2314]
[1724441554682,0.09368735,63730.0,63726.0,0.16400298]
[1724441554918,0.000827,63731.0,63727.0,0.00313794]
[1724441555129,0.000827,63731.0,63729.0,0.002]
[1724441555339,0.000827,63731.0,63730.0,0.23453781]
[1724441555567,0.000827,63731.0,63730.0,0.50020298]
[1724441557483,0.000827,63731.0,63730.0,0.51420298]
[1724441557986,0.000827,63731.0,63730.0,0.50020298]
[1724441558323,0.000827,63731.0,63730.0,0.51420298]
[1724441558709,0.000827,63731.0,63730.0,0.40940298]
[1724441558942,0.000827,63731.0,63730.0,0.17800298]
[1724441559147,0.000827,63731.0,63730.0,0.014]
[1724441559557,0.000827,63731.0,63719.0,0.2314]
[1724441559763,0.000827,63731.0,63720.0,0.16400298]
[1724441559962,0.001827,63731.0,63730.0,0.012]
[1724441560176,0.001827,63731.0,63720.0,0.16400298]
[1724441560455,0.001827,63731.0,63720.0,0.16714124]
[1724441560603,0.002827,63731.0,63730.0,0.012]
[1724441560802,0.002827,63731.0,63730.0,0.17600298]
[1724441561040,0.002827,63731.0,63730.0,0.012]
[1724441561497,0.002827,63731.0,63711.0,0.2314]
[1724441561498,0.276427,63731.0,63712.0,0.59229154]
[1724441561697,0.276427,63731.0,63709.0,0.10589755]
[1724441561698,0.2756,63729.0,63720.0,0.012]
[1724441561903,0.28775471,63728.0,63720.0,0.012]
[1724441562106,0.1848,63730.0,63720.0,0.012]
[1724441562107,0.38775471,63727.0,63720.0,0.012]
[1724441562310,0.19695471,63726.0,63720.0,0.012]
[1724441562531,0.2756,63725.0,63720.0,0.012]
[1724441562744,0.28775639,63725.0,63720.0,0.012]
[1724441563177,0.2756,63725.0,63720.0,0.012]
[1724441563363,0.2756,63725.0,63709.0,0.00109755]
[1724441563510,0.287756,63724.0,63709.0,0.00109755]
[1724441563711,0.01215601,63723.0,63709.0,0.00109755]
[1724441563935,0.2756,63723.0,63709.0,0.00109755]
[1724441564151,0.11215627,63722.0,63709.0,0.00109755]
[1724441564312,0.2756,63721.0,63709.0,0.00109755]
[1724441564709,0.04690874,63725.0,63709.0,0.00109755]
[1724441564710,0.19695687,63720.0,63709.0,0.00109755]
[1724441564911,0.2619,63719.0,63710.0,0.0027546]
[1724441565177,0.2619,63719.0,63710.0,0.0007546]
[1724441566344,0.2619,63719.0,63710.0,0.0047546]
[1724441566758,0.2619,63719.0,63710.0,0.0007546]
[1724441567114,0.2629,63719.0,63710.0,0.0067546]
[1724441567529,0.04477,63718.0,63710.0,0.0067546]
[1724441567697,0.2629,63719.0,63710.0,0.0067546]
[1724441568490,0.04691659,63726.0,63711.0,0.16714219]
[1724441568491,0.000826,63723.0,63711.0,0.16714219]
[1724441568645,0.000826,63723.0,63711.0,0.39844219]
[1724441569206,0.0004336,63723.0,63711.0,0.39844219]
[1724441569857,0.0004336,63723.0,63710.0,0.0007546]
[1724441569858,0.0004336,63723.0,63722.0,0.16400298]
[1724441570057,0.0004336,63723.0,63722.0,0.52624092]
[1724441570366,0.0004336,63723.0,63722.0,0.52810298]
[1724441570570,0.0004336,63723.0,63722.0,0.62810298]
[1724441570995,0.0014336,63723.0,63722.0,0.62810298]
[1724441571632,0.0024336,63723.0,63722.0,0.64210298]
[1724441573082,0.0004336,63723.0,63722.0,0.62810298]
[1724441573318,0.0004336,63723.0,63722.0,0.62610298]
[1724441573597,0.0014336,63723.0,63722.0,0.63710298]
[1724441573850,0.0014336,63723.0,63722.0,0.51410298]
[1724441574094,0.0014336,63723.0,63722.0,0.52910298]
[1724441574095,0.0024336,63723.0,63722.0,0.52910298]
[1724441574335,0.0004336,63723.0,63722.0,0.50010298]
[1724441574807,0.0014336,63723.0,63722.0,0.51410298]
[1724441575044,0.0004336,63723.0,63722.0,0.50010298]
[1724441576423,0.0014336,63723.0,63722.0,0.51410298]
[1724441578424,0.0014336,63723.0,63722.0,0.40930298]
[1724441578626,0.0014336,63723.0,63722.0,1.19395998]
[1724441578986,0.0014336,63723.0,63722.0,0.64879698]
[1724441579207,0.0014336,63723.0,63722.0,0.33493398]
[1724441579765,0.0014336,63723.0,63722.0,0.64879698]
[1724441580272,0.0014336,63723.0,63722.0,0.96265998]
[1724441580927,0.0014336,63723.0,63722.0,0.96284889]
[1724441582621,0.0014336,63723.0,63722.0,0.64898589]
[1724441583043,0.0014336,63723.0,63722.0,0.17819189]
[1724441584411,0.0014336,63723.0,63722.0,0.16419189]
[1724441584412,0.2794336,63723.0,63722.0,0.16419189]
[1724441584612,0.2804336,63723.0,63722.0,0.17819189]
[1724441584822,0.2804336,63723.0,63722.0,0.16419189]
[1724441585032,0.2814336,63723.0,63722.0,0.17819189]
[1724441585241,0.2814336,63723.0,63722.0,0.01418891]
[1724441586169,0.4690336,63723.0,63722.0,0.01418891]
[1724441586985,0.0024336,63723.0,63722.0,0.96284889]
[1724441587185,0.0024336,63723.0,63722.0,1.27671189]
[1724441587369,0.0024336,63723.0,63722.0,1.84787489]
[1724441587565,0.0024336,63723.0,63722.0,2.16173789]
[1724441588152,0.0024336,63723.0,63722.0,2.26173789]
[1724441588386,0.0004336,63723.0,63722.0,2.24973789]
[1724441588640,0.0004336,63723.0,63722.0,2.26373789]
[1724441588879,0.0014336,63723.0,63722.0,2.26373789]
[1724441592521,0.0014336,63723.0,63722.0,2.26464539]
[1724441592741,0.0014336,63723.0,63722.0,2.27267605]
[1724441596454,0.0014336,63723.0,63722.0,1.95481305]
[1724441596980,0.0014336,63723.0,63722.0,1.92278239]
[1724441597192,0.0014336,63723.0,63722.0,1.60991939]
[1724441597423,0.0014336,63723.0,63722.0,2.24164539]
[1724441598280,0.0004336,63723.0,63722.0,2.22764539]
[1724441598464,0.0004336,63723.0,63722.0,2.26464539]
[1724441598603,0.0004336,63723.0,63722.0,1.94978239]
[1724441598806,0.0004336,63723.0,63722.0,1.93578239]
[1724441599006,0.0004336,63723.0,63722.0,1.93278239]
[1724441599229,0.0004336,63723.0,63722.0,1.94678239]
[1724441599650,0.0004336,63723.0,63722.0,1.94878239]
[1724441599871,0.0004336,63723.0,63722.0,1.94678239]
[1724441600069,0.0004336,63723.0,63722.0,1.94878239]
[1724441600472,0.0004336,63723.0,63722.0,1.95078239]
[1724441600653,0.0004336,63723.0,63722.0,1.94678239]
[1724441601215,0.0004336,63723.0,63722.0,1.71448239]
[1724441601437,0.0004336,63723.0,63722.0,1.71548239]
[1724441602333,0.0004336,63723.0,63722.0,1.71829348]
[1724441602771,0.0004336,63723.0,63722.0,1.95019348]
[1724441603088,0.0004336,63723.0,63722.0,2.26405648]
[1724441603625,0.0004336,63723.0,63722.0,1.95019348]
[1724441604591,0.0004336,63723.0,63722.0,1.94919348]
[1724441605028,0.4472336,63723.0,63722.0,1.27743048]
[1724441605212,0.4472336,63723.0,63722.0,0.33584148]
[1724441605405,0.4472336,63723.0,63722.0,0.17891048]
[1724441606013,0.4472336,63723.0,63722.0,0.16491048]
[1724441606421,0.4472336,63723.0,63722.0,0.0009075]
[1724441607400,0.1969,63721.0,63720.0,0.07]
[1724441607620,0.4732,63721.0,63720.0,0.07]
[1724441608600,0.47301113,63721.0,63720.0,0.083]
[1724441613598,0.47301113,63721.0,63709.0,0.0009086]
[1724441613599,0.4732,63720.0,63709.0,0.0009086]
[1724441613802,0.1,63721.0,63709.0,0.0009086]
[1724441614003,0.4732,63719.0,63709.0,0.0009086]
[1724441614282,0.2763,63720.0,63709.0,0.0009086]
[1724441614487,0.2763,63718.0,63709.0,0.0009086]
[1724441614698,0.4732,63716.0,63709.0,0.0009086]
[1724441614914,0.4465,63717.0,63709.0,0.0009086]
[1724441615118,0.4465,63715.0,63710.0,0.0037546]
[1724441615237,0.257,63713.0,63710.0,0.0007546]
[1724441615449,0.1895,63712.0,63710.0,0.0007546]
[1724441615680,0.257,63711.0,63710.0,0.0077546]
[1724441616039,0.257,63705.0,63699.0,0.0009097]
[1724441616238,0.346476,63704.0,63699.0,0.0009097]
[1724441616430,0.11216157,63704.0,63699.0,0.0009097]
[1724441616672,0.01216157,63703.0,63699.0,0.0009097]
[1724441616879,0.621785,63700.0,63699.0,0.0009097]
[1724441617080,0.5648,63700.0,63699.0,0.0009097]
[1724441617317,1.035756,63700.0,63699.0,0.0009097]
[1724441617940,0.938764,63699.0,63698.0,0.009086]
[1724441618145,1.20274278,63699.0,63698.0,0.009086]
[1724441618583,1.20274278,63699.0,63676.0,0.009086]
[1724441618584,0.4648,63690.0,63677.0,0.012456]
[1724441618785,0.004,63697.0,63677.0,0.012456]
[1724441618786,0.2732,63688.0,63677.0,0.012456]
[1724441618989,0.2732,63686.0,63677.0,0.012456]
[1724441619189,0.1916,63685.0,63677.0,0.012456]
[1724441619323,0.2732,63684.0,63677.0,0.012456]
[1724441621513,0.05648,63683.0,63677.0,0.012456]
[1724441621714,0.2564,63681.0,63677.0,0.012456]
[1724441621917,0.1983,63680.0,63677.0,0.012456]
[1724441622127,0.31603,63689.0,63677.0,0.012456]
[1724441622128,0.1896,63678.0,63677.0,0.012456]
[1724441622338,0.5417,63678.0,63677.0,0.012456]
[1724441624594,0.5427,63678.0,63677.0,0.012456]
[1724441625498,0.59697,63678.0,63677.0,0.012456]
[1724441626230,0.5427,63678.0,63677.0,0.012456]
[1724441627642,0.5417,63678.0,63677.0,0.012456]
[1724441627871,0.5517,63678.0,63677.0,0.012456]
[1724441628287,0.5417,63678.0,63677.0,0.0133646]
[1724441628490,0.5517,63678.0,63677.0,0.0133646]
[1724441630102,0.4517,63678.0,63677.0,0.0133646]
[1724441630719,0.4417,63678.0,63677.0,0.0133646]
[1724441633354,0.46632795,63678.0,63677.0,0.0133646]
[1724441634901,0.27672795,63678.0,63677.0,0.0133646]
[1724441641890,0.63046795,63678.0,63677.0,0.0133646]
[1724441642133,1.04354795,63678.0,63677.0,9.5e-07]
[1724441642372,0.57242795,63678.0,63677.0,9.5e-07]
[1724441642647,0.66117645,63678.0,63677.0,9.5e-07]
[1724441642815,0.57242795,63678.0,63677.0,9.5e-07]
[1724441643503,1.04354795,63678.0,63677.0,9.5e-07]
[1724441643700,0.72946795,63678.0,63677.0,9.5e-07]
[1724441643937,1.04354795,63678.0,63677.0,9.5e-07]
[1724441644159,0.57242795,63678.0,63677.0,9.5e-07]
[1724441644366,0.57242795,63678.0,63658.0,0.009086]
[1724441644367,0.43658184,63678.0,63658.0,0.00828295]
[1724441644592,0.2544,63676.0,63658.0,0.00828295]
[1724441644813,0.3544,63675.0,63658.0,0.00828295]
[1724441645034,0.1,63674.0,63658.0,0.00828295]
[1724441645641,0.02463116,63671.0,63658.0,0.00828295]
[1724441645831,0.26686312,63670.0,63658.0,0.00828295]
[1724441646100,0.2544,63670.0,63658.0,0.00828295]
[1724441646802,0.2544,63670.0,63659.0,0.16400298]
[1724441647563,0.2544,63670.0,63661.0,0.157081]
[1724441647772,0.2544,63670.0,63659.0,0.16400298]
[1724441648059,0.2544,63670.0,63658.0,0.55565895]
[1724441648060,0.2544,63670.0,63658.0,0.32246095]
[1724441648267,0.2544,63670.0,63659.0,0.157086]
[1724441648472,0.2554,63670.0,63659.0,0.157086]
[1724441648690,0.2554,63670.0,63658.0,0.48646393]
[1724441648895,0.2554,63670.0,63660.0,0.16400298]
[1724441649098,0.2554,63670.0,63662.0,0.157078]
[1724441649299,0.2554,63670.0,63660.0,0.32108598]
[1724441649526,0.2554,63670.0,63661.0,0.157081]
[1724441649712,0.2544,63668.0,63658.0,0.00828295]
[1724441650115,0.1,63667.0,63658.0,0.00828295]
[1724441651073,0.1991,63665.0,63658.0,0.00828295]
[1724441651317,0.2788,63664.0,63658.0,0.00828295]
[1724441651528,0.2788,63662.0,63658.0,0.00828295]
[1724441651725,0.1090469,63661.0,63658.0,0.00828295]
[1724441651898,0.2788,63662.0,63658.0,0.00828295]
[1724441651899,0.2090469,63660.0,63658.0,0.00828295]
[1724441652100,0.5869469,63659.0,63658.0,0.00828295]
[1724441652501,0.6869469,63659.0,63658.0,0.00828295]
[1724441652703,0.68675795,63659.0,63658.0,0.00828295]
[1724441653281,0.68675795,63659.0,63649.0,5e-05]
[1724441653477,0.20885795,63658.0,63649.0,5e-05]
[1724441653739,0.10885795,63657.0,63649.0,5e-05]
[1724441653915,0.20885795,63657.0,63649.0,5e-05]
[1724441654589,0.48385795,63657.0,63649.0,5e-05]
[1724441654989,0.47168727,63657.0,63649.0,5e-05]
[1724441655201,0.48485973,63657.0,63649.0,5e-05]
[1724441655419,0.47268727,63657.0,63649.0,5e-05]
[1724441655625,0.48485993,63657.0,63649.0,5e-05]
[1724441656253,0.38817266,63657.0,63649.0,5e-05]
[1724441657416,0.38717266,63657.0,63649.0,5e-05]
[1724441659081,0.1,63657.0,63649.0,5e-05]
[1724441659287,0.2715,63662.0,63649.0,5e-05]
[1724441659288,0.1,63661.0,63649.0,5e-05]
[1724441659486,0.01216999,63660.0,63649.0,5e-05]
[1724441659662,0.01216999,63659.0,63649.0,5e-05]
[1724441659885,0.1,63661.0,63649.0,5e-05]
[1724441660086,0.01216991,63660.0,63649.0,5e-05]
[1724441660437,0.01216991,63659.0,63649.0,5e-05]
[1724441660609,0.01216991,63658.0,63649.0,5e-05]
[1724441660765,0.001,63657.0,63649.0,5e-05]
[1724441660965,0.1,63661.0,63649.0,0.15716]
[1724441661166,0.01217027,63660.0,63649.0,5e-05]
[1724441661368,0.1086041,63659.0,63649.0,5e-05]
[1724441661592,0.004,63660.0,63649.0,5e-05]
[1724441661593,0.11217027,63658.0,63649.0,5e-05]
[1724441661795,0.28367027,63657.0,63649.0,5e-05]
[1724441661957,0.28467027,63657.0,63649.0,5e-05]
[1724441662162,0.38467027,63657.0,63649.0,5e-05]
[1724441662365,0.38367027,63657.0,63649.0,5e-05]
[1724441663249,0.314213,63651.0,63649.0,5e-05]
[1724441663397,0.01217027,63650.0,63649.0,5e-05]
[1724441663615,0.36214753,63650.0,63649.0,5e-05]
[1724441663830,0.4743178,63650.0,63649.0,5e-05]
[1724441664006,1.33145928,63650.0,63649.0,5e-05]
[1724441664207,1.64758388,63650.0,63649.0,5e-05]
[1724441664402,1.69652987,63650.0,63649.0,5e-05]
[1724441664609,2.02406499,63650.0,63649.0,5e-05]
[1724441664809,1.7102006,63650.0,63649.0,5e-05]
[1724441665015,2.0244186,63650.0,63649.0,5e-05]
[1724441665259,1.71020263,63650.0,63649.0,5e-05]
[1724441665458,2.02442063,63650.0,63649.0,5e-05]
[1724441665694,1.8315165,63650.0,63649.0,5e-05]
[1724441665871,2.02842063,63650.0,63649.0,5e-05]
[1724441666069,1.71420263,63650.0,63649.0,5e-05]
[1724441666279,1.6634828,63650.0,63649.0,5e-05]
[1724441666483,1.51061192,63650.0,63649.0,5e-05]
[1724441666682,1.48661192,63650.0,63649.0,5e-05]
[1724441666857,1.48261192,63650.0,63649.0,5e-05]
[1724441667058,1.6465907,63650.0,63649.0,5e-05]
[1724441667258,1.6525907,63650.0,63649.0,5e-05]
[1724441667541,1.71692248,63650.0,63649.0,5e-05]
[1724441667947,0.60061939,63650.0,63649.0,5e-05]
[1724441668151,0.51461939,63650.0,63649.0,5e-05]
[1724441668333,0.0386423,63650.0,63649.0,5e-05]
[1724441669049,0.0386423,63650.0,63649.0,0.47827598]
[1724441669239,0.0386423,63650.0,63649.0,0.82208698]
[1724441669484,0.0386423,63650.0,63649.0,0.50786398]
[1724441669877,0.0246423,63650.0,63649.0,0.35075298]
[1724441670287,0.0386423,63650.0,63649.0,0.35075298]
[1724441670604,0.0246423,63650.0,63649.0,0.16405298]
[1724441670811,0.0256423,63650.0,63649.0,0.16405298]
[1724441671032,0.0256423,63650.0,63649.0,5e-05]
[1724441671234,0.0246423,63650.0,63649.0,0.32116398]
[1724441671637,0.0256423,63650.0,63649.0,0.86868698]
[1724441672132,0.0256423,63650.0,63649.0,0.39735298]
[1724441672334,0.0256423,63650.0,63641.0,0.314261]
[1724441672335,0.2734,63649.0,63635.0,0.009086]
[1724441672687,0.1,63648.0,63635.0,0.009086]
[1724441673615,0.1,63648.0,63636.0,0.16400298]
[1724441673616,0.2544,63647.0,63636.0,0.16400298]
[1724441673790,0.2544,63647.0,63635.0,0.009086]
[1724441673994,0.1,63648.0,63635.0,0.009086]
[1724441673995,0.2668,63640.0,63635.0,0.009086]
[1724441674383,0.1,63639.0,63635.0,0.009086]
[1724441674583,0.12464398,63639.0,63635.0,0.009086]
[1724441675446,0.2668,63637.0,63635.0,0.009086]
[1724441675823,0.1,63636.0,63635.0,0.009086]
[1724441677390,0.101,63636.0,63635.0,0.009086]
[1724441678559,0.101,63636.0,63635.0,0.64452698]
[1724441678560,0.001,63636.0,63635.0,0.64452698]
[1724441678791,0.001,63636.0,63635.0,0.009086]
[1724441679255,0.001,63636.0,63635.0,0.17308898]
[1724441679494,0.02464398,63639.0,63635.0,0.17308898]
[1724441679696,0.02464398,63639.0,63636.0,0.16400298]
[1724441679896,0.02464398,63639.0,63636.0,0.16300298]
[1724441680098,0.02464398,63639.0,63635.0,0.009086]
[1724441680310,0.02464398,63639.0,63636.0,0.16400298]
[1724441680656,0.02464398,63639.0,63638.0,0.314277]
[1724441680878,0.02664398,63639.0,63638.0,1.05271798]
[1724441682139,0.02664398,63639.0,63638.0,1.68127198]
[1724441682590,0.02464398,63639.0,63638.0,1.68127198]
[1724441683301,0.02564398,63639.0,63638.0,1.68127198]
[1724441683505,0.02564398,63639.0,63638.0,1.68427198]
[1724441683715,0.02464398,63639.0,63638.0,1.70727198]
[1724441683919,0.02564398,63639.0,63638.0,1.70727198]
[1724441684324,0.02564398,63639.0,63638.0,1.70427198]
[1724441684525,0.02564398,63639.0,63638.0,1.70527198]
[1724441684732,0.02564398,63639.0,63638.0,1.70627198]
[1724441684931,0.02564398,63639.0,63638.0,1.70527198]
[1724441685132,0.02564398,63639.0,63638.0,1.70727198]
[1724441685552,0.02564398,63639.0,63638.0,0.58130298]
[1724441685553,0.02464398,63639.0,63638.0,0.58130298]
[1724441685972,0.02464398,63639.0,63638.0,1.05271798]
[1724441686386,0.02564398,63639.0,63638.0,0.16800298]
[1724441686594,0.02464398,63639.0,63638.0,0.16400298]
[1724441686998,0.02564398,63639.0,63638.0,0.16800298]
[1724441687147,0.02564398,63639.0,63638.0,0.16400298]
[1724441687582,0.02538978,63639.0,63638.0,0.16800298]
[1724441687749,0.02538978,63639.0,63638.0,0.95369498]
[1724441687934,0.02538978,63639.0,63638.0,0.32514098]
[1724441688169,0.02538978,63639.0,63638.0,0.63941798]
[1724441688646,0.02438978,63639.0,63638.0,0.63541798]
[1724441689197,0.02538978,63639.0,63638.0,0.95369498]
[1724441689441,0.02438978,63639.0,63638.0,0.94969498]
[1724441689623,0.02438978,63639.0,63638.0,0.95369498]
[1724441689766,0.02538978,63639.0,63638.0,0.95369498]
[1724441689967,0.02538978,63639.0,63638.0,0.94969498]
[1724441690370,0.02638978,63639.0,63638.0,0.95369498]
[1724441690769,0.02438978,63639.0,63638.0,0.94969498]
[1724441691604,0.02438978,63639.0,63638.0,0.63541798]
[1724441691804,0.02438978,63639.0,63638.0,0.16491268]
[1724441691962,0.02438978,63639.0,63638.0,0.32205068]
[1724441692172,0.02538978,63639.0,63638.0,0.33205068]
[1724441692377,0.02538978,63639.0,63638.0,0.64632768]
[1724441692804,0.04691893,63666.0,63662.0,1.642774]
[1724441693005,0.1407568,63677.0,63645.0,0.001]
[1724441693006,0.11025511,63702.0,63677.0,0.162042]
[1724441693234,0.00826,63714.0,63677.0,0.65812998]
[1724441693404,0.2652,63695.0,63677.0,0.65812998]
[1724441693602,0.2652,63695.0,63677.0,0.97221498]
[1724441693900,0.2652,63695.0,63677.0,1.37911498]
[1724441694217,0.2652,63695.0,63677.0,1.06502998]
[1724441694559,0.2652,63695.0,63677.0,1.69319998]
[1724441694688,0.2652,63695.0,63677.0,1.38011498]
[1724441694885,0.2652,63695.0,63677.0,1.37911498]
[1724441695286,0.2652,63695.0,63677.0,1.38011498]
[1724441695486,0.2652,63695.0,63677.0,1.39311498]
[1724441695737,0.2652,63695.0,63677.0,1.37911498]
[1724441696112,0.2652,63695.0,63677.0,1.39311498]
[1724441698486,0.2652,63695.0,63677.0,1.70819998]
[1724441698903,0.2652,63695.0,63677.0,1.71019998]
[1724441699486,0.2652,63695.0,63677.0,1.70719998]
[1724441699701,0.2652,63695.0,63677.0,1.39311498]
[1724441700302,0.1867,63690.0,63677.0,0.17800298]
[1724441700464,0.2544,63682.0,63677.0,0.17800298]
[1724441701164,0.2544,63682.0,63677.0,0.33504498]
[1724441701370,0.2544,63687.0,63677.0,0.64912998]
[1724441701722,0.2544,63687.0,63677.0,0.33504498]
[1724441701920,0.2544,63687.0,63677.0,0.64912998]
[1724441702987,0.2544,63687.0,63677.0,0.96321498]
[1724441703194,0.2544,63687.0,63677.0,0.64912998]
[1724441703384,0.2544,63687.0,63677.0,0.17800298]
[1724441704656,0.2544,63687.0,63677.0,0.33504498]
[1724441704854,0.2544,63687.0,63677.0,0.64912998]
[1724441705061,0.100826,63698.0,63677.0,1.27829998]
[1724441705062,0.2594,63693.0,63677.0,1.27829998]
[1724441705272,0.1863,63696.0,63677.0,1.78968498]
[1724441705476,0.1863,63696.0,63677.0,1.77568498]
[1724441705628,0.025447,63678.0,63677.0,1.77768498]
[1724441705835,0.025447,63678.0,63677.0,1.79168498]
[1724441706037,0.025447,63678.0,63677.0,1.77768498]
[1724441706590,0.000826,63698.0,63690.0,0.003]
[1724441706803,0.000826,63698.0,63691.0,0.39974246]
[1724441707017,0.000826,63698.0,63693.0,0.314002]
[1724441707220,0.000826,63698.0,63695.0,0.156996]
[1724441707424,0.000826,63698.0,63696.0,0.16400298]
[1724441707895,0.000826,63698.0,63696.0,0.32099798]
[1724441708097,0.000826,63698.0,63696.0,0.16400298]
[1724441708945,0.2572,63697.0,63696.0,0.16400298]
[1724441709315,0.000826,63698.0,63696.0,0.16400298]
[1724441709519,0.000826,63698.0,63696.0,0.15900298]
[1724441709918,0.000826,63698.0,63682.0,0.2326]
[1724441709919,0.2572,63697.0,63682.0,0.314057]
[1724441710118,0.2572,63697.0,63688.0,0.49229154]
[1724441710319,0.2572,63697.0,63696.0,0.01]
[1724441710986,0.2572,63697.0,63696.0,0.016]
[1724441711367,0.4417,63697.0,63696.0,0.016]
[1724441711581,0.5417,63697.0,63696.0,0.016]
[1724441711961,0.5417,63697.0,63696.0,0.01162669]
[1724441712370,0.2701,63696.0,63679.0,0.157037]
[1724441712570,0.2701,63694.0,63680.0,0.16400298]
[1724441712781,0.15800448,63693.0,63659.0,0.314172]
[1724441713000,0.2701,63681.0,63672.0,0.49229154]
[1724441713207,0.2701,63679.0,63665.0,0.157071]
[1724441713456,0.2701,63679.0,63666.0,0.16400298]
[1724441714508,0.0246283,63676.0,63666.0,0.16400298]
[1724441714710,0.2701,63675.0,63666.0,0.16400298]
[1724441715608,0.2701,63673.0,63656.0,0.49248064]
[1724441716016,0.2701,63673.0,63658.0,0.157088]
[1724441716218,0.2701,63673.0,63658.0,0.16400298]
[1724441716219,0.4553,63671.0,63658.0,0.16400298]
[1724441716395,0.2701,63668.0,63666.0,0.001]
[1724441716599,0.2701,63666.0,63656.0,0.0001891]
[1724441716998,0.02463045,63669.0,63656.0,0.0001891]
[1724441716999,0.2701,63664.0,63656.0,0.0011891]
[1724441717232,0.2701,63664.0,63656.0,0.0001891]
[1724441719232,0.2741,63664.0,63656.0,0.0001891]
[1724441719459,0.2741,63664.0,63651.0,0.157105]
[1724441719670,0.2741,63664.0,63652.0,0.16400298]
[1724441720207,0.2701,63664.0,63652.0,0.16400298]
[1724441720408,0.1852,63665.0,63652.0,0.16400298]
[1724441720612,0.2766,63662.0,63638.0,0.0009097]
[1724441720786,0.2766,63660.0,63645.0,0.15712]
[1724441720989,0.2766,63660.0,63638.0,0.0009097]
[1724441721196,0.104,63664.0,63639.0,0.16400298]
[1724441721197,0.2581,63656.0,63639.0,0.16400298]
[1724441721443,0.2481,63656.0,63639.0,0.16400298]
[1724441721813,0.418152,63664.0,63639.0,0.16400298]
[1724441721814,0.1937,63655.0,63639.0,0.16400298]
[1724441722015,0.1937,63655.0,63638.0,0.0009097]
[1724441722243,0.1937,63655.0,63638.0,0.16491268]
[1724441722445,0.1937,63655.0,63641.0,0.49229154]
[1724441722605,0.1937,63655.0,63639.0,0.16400298]
[1724441722606,0.1937,63655.0,63642.0,0.16714503]
[1724441722816,0.1937,63655.0,63648.0,0.157112]
[1724441723396,0.1937,63655.0,63647.0,0.471345]
[1724441723619,0.1947,63655.0,63647.0,0.16400298]
[1724441723827,0.1937,63655.0,63647.0,0.16400298]
[1724441724239,0.1937,63655.0,63647.0,0.32111798]
[1724441724424,0.1937,63655.0,63647.0,0.16400298]
[1724441724636,0.2705,63654.0,63647.0,0.16400298]
[1724441725824,0.27031096,63654.0,63647.0,0.16400298]
[1724441726281,0.27031096,63654.0,63647.0,0.16500298]
[1724441726513,0.27031096,63654.0,63653.0,0.00436117]
[1724441726964,0.27031096,63654.0,63653.0,0.16146217]
[1724441727161,0.27031096,63654.0,63653.0,0.00436117]
[1724441727621,0.27005676,63654.0,63653.0,0.00436117]
[1724441728445,0.27005676,63654.0,63653.0,0.00536117]
[1724441729484,0.29469354,63654.0,63653.0,0.00536117]
[1724441729947,0.29469354,63654.0,63653.0,0.00626867]
[1724441732361,1.06539054,63654.0,63653.0,0.00626867]
[1724441732604,0.59409354,63654.0,63653.0,0.00626867]
[1724441733348,0.59409354,63654.0,63653.0,0.40626867]
[1724441738627,1.06539054,63654.0,63653.0,0.40626867]
[1724441738867,1.37958854,63654.0,63653.0,0.40626867]
[1724441739066,1.51007395,63654.0,63653.0,0.40626867]
[1724441739269,1.82627195,63654.0,63653.0,0.2095919]
[1724441739669,1.50907395,63654.0,63653.0,0.2095919]
[1724441739959,1.07756355,63654.0,63653.0,0.2095919]
[1724441740084,0.60626655,63654.0,63653.0,0.2095919]
[1724441740301,0.76336555,63654.0,63653.0,0.2095919]
[1724441741564,0.77736555,63654.0,63653.0,0.2105919]
[1724441741958,0.76336555,63654.0,63653.0,0.2095919]
[1724441742348,0.77736555,63654.0,63653.0,0.2105919]
[1724441742565,0.60626655,63654.0,63653.0,0.2095919]
[1724441742753,0.50626655,63654.0,63653.0,0.2095919]
[1724441742952,0.49409354,63654.0,63653.0,0.2105919]
[1724441743152,0.50626555,63654.0,63653.0,0.2115005]
[1724441743313,0.50709155,63654.0,63653.0,0.2115005]
[1724441743954,0.52109155,63654.0,63653.0,0.2105005]
[1724441746221,0.61209155,63654.0,63653.0,0.2105005]
[1724441746649,0.61209181,63654.0,63653.0,0.2105005]
[1724441749619,0.41269181,63654.0,63653.0,0.2105005]
[1724441749843,0.14263505,63654.0,63653.0,0.2105005]
[1724441750048,0.04263505,63654.0,63653.0,0.2105005]
[1724441750264,0.14263505,63654.0,63653.0,0.2105005]
[1724441751205,0.04263505,63654.0,63653.0,0.2105005]
[1724441751985,0.03763505,63654.0,63653.0,0.2105005]
[1724441752192,0.30153505,63654.0,63653.0,0.2105005]
[1724441752389,0.48053589,63654.0,63653.0,0.2105005]
[1724441753037,0.48153589,63654.0,63653.0,0.2105005]
[1724441757230,0.40553505,63654.0,63653.0,0.2105005]
[1724441757436,0.14163505,63654.0,63653.0,0.2105005]
[1724441757635,0.04163505,63654.0,63653.0,0.2105005]
[1724441760143,0.11765598,63654.0,63653.0,0.2105005]
[1724441760377,0.26467171,63654.0,63653.0,0.2105005]
[1724441760615,0.54027171,63654.0,63653.0,0.2105005]
[1724441760852,0.21765598,63654.0,63653.0,0.2105005]
[1724441761077,0.14163505,63654.0,63653.0,0.2105005]
[1724441761554,0.04163462,63654.0,63653.0,0.2105005]
[1724441761807,0.14163462,63654.0,63653.0,0.2105005]
[1724441762077,0.14163461,63654.0,63653.0,0.2105005]
[1724441762304,0.04163461,63654.0,63653.0,0.61540348]
[1724441762772,0.02946278,63654.0,63653.0,0.37450348]
[1724441762998,0.04163318,63654.0,63653.0,0.37450348]
[1724441763223,0.03763318,63654.0,63653.0,0.37450348]
[1724441763441,0.03763318,63654.0,63653.0,0.37550348]
[1724441764736,0.54078638,63654.0,63653.0,0.2115005]
[1724441764965,0.64114962,63654.0,63653.0,0.2105005]
[1724441765198,0.65295834,63654.0,63653.0,0.2125005]
[1724441765676,0.58243474,63654.0,63653.0,0.2125005]
[1724441766162,0.66280069,63654.0,63653.0,0.2125005]
[1724441766398,0.72712106,63654.0,63653.0,0.2125005]
[1724441766636,0.80314264,63654.0,63653.0,0.2125005]
[1724441767334,0.82665051,63654.0,63653.0,0.2125005]
[1724441767572,0.70911118,63654.0,63653.0,0.2125005]
[1724441768923,1.18140916,63654.0,63653.0,0.2125005]
[1724441769122,1.3138202,63654.0,63653.0,0.2125005]
[1724441769350,0.70911216,63654.0,63653.0,0.2125005]
[1724441769552,0.81735745,63654.0,63653.0,0.2125005]
[1724441769755,0.85023799,63654.0,63653.0,0.2125005]